fUSD/lending_fUSD_20240201
["ID","MTS","AMOUNT","RATE_DAILY","PERIOD"]
[313151460,1706820632036,-300.0,0.00022801,2]
[313151461,1706820632045,-150.0,0.00022811,2]
[313151462,1706820632054,-150.0,0.00022812,2]
[313151463,1706820632064,-150.0,0.00022815,2]
[313151464,1706820632072,-150.0,0.00022817,2]
[313151465,1706820632082,-150.0,0.00022819,2]
[313151466,1706820632091,-150.0,0.00022821,2]
[313151467,1706820632101,-245.22630715,0.00022821,2]
[313151468,1706820632110,-150.0,0.00022824,2]
[313151469,1706820632119,-300.0,0.00022824,2]
[313151470,1706820632129,-150.0,0.00022827,2]
[313151471,1706820632138,-150.0,0.00022828,2]
[313151472,1706820632147,-150.0,0.00022829,2]
[313151473,1706820632157,-150.0,0.00022829,2]
[313151474,1706820632166,-150.0,0.00022831,2]
[313151475,1706820632176,-150.0,0.00022832,2]
[313151476,1706820632187,-150.0,0.00022835,2]
[313151477,1706820632196,-150.0,0.00022835,2]
[313151478,1706820632205,-150.0,0.00022837,2]
[313151479,1706820632214,-150.0,0.0002284,2]
[313151480,1706820632224,-150.0,0.00022841,2]
[313151481,1706820632233,-289.52666185,0.00022841,2]
[313151482,1706820632242,-150.0,0.00022842,2]
[313151483,1706820632250,-150.0,0.00022844,2]
[313151484,1706820632260,-300.0,0.00022845,2]
[313151485,1706820632269,-150.0,0.00022851,2]
[313151486,1706820632278,-150.0,0.00022852,2]
[313151487,1706820632287,-150.0,0.00022856,2]
[313151488,1706820632296,-150.0,0.00022858,2]
[313151489,1706820632305,-150.0,0.00022862,2]
[313151490,1706820632315,-150.0,0.00022865,2]
[313151491,1706820632325,-150.0,0.00022881,2]
[313151492,1706820632336,-150.0,0.00022883,2]
[313151493,1706820632346,-150.0,0.00022889,2]
[313151494,1706820632355,-1500.0,0.00022889,2]
[313151495,1706820632365,-150.0,0.00022891,2]
[313151496,1706820632374,-1500.0,0.00022893,2]
[313151497,1706820632384,-150.0,0.00022894,2]
[313151498,1706820632393,-31676.65380543,0.00022896,2]
[313151499,1706820632409,-778.98137885,0.00022896,2]
[313151500,1706820632420,-832.9,0.00022896,2]
[313151501,1706820632431,-301.48,0.00022896,2]
[313151502,1706820632442,-762.71,0.00022896,2]
[313151503,1706820632454,-440.0,0.00022896,2]
[313151504,1706820632465,-653.0,0.00022896,2]
[313151505,1706820632476,-677.100004,0.00022896,2]
[313151506,1706820632487,-1358.5,0.00022896,2]
[313151507,1706820632498,-448.59695826,0.00022896,2]
[313151508,1706820632518,-620.55230255,0.00022896,2]
[313151509,1706820632529,-547.40747628,0.00022896,2]
[313151515,1706820637493,-156.56736622,0.00022691,2]
[313151516,1706820637503,-156.56736622,0.00022708,2]
[313151517,1706820637513,-3054.95485777,0.00022896,2]
[313151518,1706820637549,-2163.32324377,0.00022896,2]
[313151519,1706820637775,-1108.77575039,0.00022896,2]
[313151521,1706820637793,-131765.9193227,0.00022896,2]
[313151522,1706820637802,-183.26443048,0.00022896,2]
[313151523,1706820637811,-282.41388341,0.00022896,2]
[313151524,1706820637821,-652.57404056,0.00022896,2]
[313151525,1706820637830,-300.0,0.00022897,2]
[313151526,1706820637839,-156.25292056,0.00022898,2]
[313151527,1706820637848,-282.41388339,0.00022898,2]
[313151528,1706820637859,-169.31838675,0.00022899,2]
[313151529,1706820637868,-237.8275,0.000229,2]
[313151530,1706820637878,-5000.0,0.000229,2]
[313151531,1706820637887,-153.63055719,0.000229,2]
[313151532,1706820637896,-425.19615792,0.000229,2]
[313151533,1706820637906,-191.54988186,0.000229,2]
[313151534,1706820637915,-183.18964413,0.000229,2]
[313151535,1706820637924,-282.41388339,0.000229,2]
[313151536,1706820637934,-150.0,0.00022904,2]
[313151537,1706820637944,-150.0,0.00022908,2]
[313151538,1706820637954,-150.0,0.00022912,2]
[313151539,1706820637963,-150.0,0.00022919,2]
[313151540,1706820637972,-150.0,0.00022922,2]
[313151541,1706820637981,-150.0,0.00022923,2]
[313151542,1706820637990,-150.0,0.00022925,2]
[313151543,1706820638000,-150.0,0.00022926,2]
[313151544,1706820638010,-150.0,0.00022926,2]
[313151545,1706820638019,-150.0,0.00022932,2]
[313151546,1706820638028,-150.0,0.00022935,2]
[313151547,1706820638038,-300.0,0.00022939,2]
[313151548,1706820638047,-150.0,0.00022939,2]
[313151549,1706820638056,-150.0,0.0002294,2]
[313151550,1706820638066,-150.0,0.00022946,2]
[313151551,1706820638075,-150.0,0.00022948,2]
[313151552,1706820638084,-150.0,0.00022948,2]
[313151553,1706820638092,-150.0,0.0002295,2]
[313151554,1706820638102,-150.0,0.0002295,2]
[313151555,1706820638112,-150.0,0.00022952,2]
[313151556,1706820638121,-150.0,0.00022956,2]
[313151557,1706820638130,-150.0,0.00022957,2]
[313151558,1706820638139,-150.0,0.00022957,2]
[313151559,1706820638148,-300.0,0.00022959,2]
[313151560,1706820638158,-150.0,0.0002296,2]
[313151561,1706820638167,-300.0,0.00022964,2]
[313151562,1706820638177,-150.0,0.00022967,2]
[313151563,1706820638187,-150.0,0.00022967,2]
[313151564,1706820638196,-300.0,0.00022967,2]
[313151565,1706820638206,-308.80025419,0.00022968,2]
[313151566,1706820638215,-150.0,0.00022968,2]
[313151567,1706820638225,-186.83697916,0.00022968,2]
[313151568,1706820638234,-150.0,0.00022972,2]
[313151570,1706820638243,-150.0,0.00022974,2]
[313151571,1706820638252,-150.0,0.00022977,2]
[313151572,1706820638261,-150.0,0.00022977,2]
[313151573,1706820638270,-150.0,0.0002298,2]
[313151574,1706820638280,-150.0,0.00022983,2]
[313151575,1706820638289,-150.0,0.00022983,2]
[313151576,1706820638297,-150.0,0.00022985,2]
[313151577,1706820638306,-150.0,0.00022985,2]
[313151578,1706820638316,-150.0,0.00022989,2]
[313151579,1706820638325,-150.0,0.0002299,2]
[313151580,1706820638334,-150.0,0.00022991,2]
[313151581,1706820638343,-150.0,0.00022992,2]
[313151582,1706820638353,-7311.51585721,0.00022993,2]
[313151583,1706820638362,-150.0,0.00022993,2]
[313151584,1706820638371,-176.86787307,0.00022994,2]
[313151585,1706820638381,-191.64869268,0.00022994,2]
[313151586,1706820638390,-245.21688013,0.00022994,2]
[313151587,1706820638399,-308.40575502,0.00022994,2]
[313151588,1706820638409,-155.40023858,0.00022994,2]
[313151589,1706820638418,-984.24808758,0.00022994,2]
[313151590,1706820638427,-155.37563385,0.00022994,2]
[313151591,1706820638437,-162.79288573,0.00022994,2]
[313151592,1706820638446,-608.07641091,0.00022994,2]
[313151593,1706820638456,-458.08995678,0.00022994,2]
[313151594,1706820638468,-155.69028417,0.00022994,2]
[313151595,1706820638478,-302.15259034,0.00022994,2]
[313151596,1706820638487,-1191.54006023,0.00022994,2]
[313151597,1706820638497,-281.30437133,0.00022994,2]
[313151598,1706820638506,-288.06903944,0.00022994,2]
[313151599,1706820638515,-155.0,0.00022994,2]
[313151600,1706820638524,-191.11582529,0.00022994,2]
[313151601,1706820638534,-935.56174471,0.00022994,2]
[313151602,1706820638543,-1276.85248312,0.00022994,2]
[313151603,1706820638552,-209.26071767,0.00022995,2]
[313151604,1706820638561,-522.97068952,0.00022995,2]
[313151605,1706820638570,-155.51550435,0.00022995,2]
[313151606,1706820638580,-3148.06260981,0.00022995,2]
[313151607,1706820638589,-155.0,0.00022996,2]
[313151608,1706820638599,-155.62176792,0.00022996,2]
[313151609,1706820638611,-205.03957266,0.00022996,2]
[313151610,1706820638620,-40897.08376547,0.00022996,2]
[313151611,1706820638633,-62841.65948648,0.00022996,2]
[313151612,1706820638644,-73001.45531397,0.00022996,2]
[313151613,1706820638656,-179713.20172321,0.00022996,2]
[313151614,1706820638668,-10919.55638365,0.00022996,2]
[313151615,1706820638679,-426.03212721,0.00022996,2]
[313151616,1706820638691,-308.15559604,0.00022996,2]
[313151617,1706820638707,-3945.16692394,0.00022996,2]
[313151618,1706820638716,-104576.15221025,0.00022996,2]
[313151619,1706820638727,-2776.99734937,0.00022996,2]
[313151621,1706820639969,-43561.97952228,0.00022996,2]
[313151622,1706820640027,-508.90128622,0.00022996,2]
[313151623,1706820640039,-8655.84196968,0.00022996,2]
[313151624,1706820640051,-2791.0099997,0.00022996,2]
[313151625,1706820640086,-944.4,0.00022996,2]
[313151626,1706820640098,-1362.86,0.00022996,2]
[313151627,1706820640111,-615.575,0.00022996,2]
[313151628,1706820640122,-553.54469613,0.00022996,2]
[313151629,1706820640144,-1169.68200494,0.00022996,2]
[313151630,1706820640156,-4005.46204794,0.00022996,2]
[313151631,1706820640814,-339.24799551,0.00022996,2]
[313151632,1706820640874,-500.0,0.00022996,2]
[313151633,1706820640885,-4177.49999999,0.00022996,2]
[313151634,1706820640897,-44045.43983599,0.00022996,2]
[313151635,1706820640906,-155.0,0.00022996,2]
[313151636,1706820640924,-183.91154665,0.00022996,2]
[313151637,1706820640963,-343.17836134,0.00022996,2]
[313151638,1706820640972,-697.25548386,0.00022996,2]
[313151639,1706820640982,-1160.16678694,0.00022996,2]
[313151640,1706820640991,-155.39975887,0.00022996,2]
[313151641,1706820641000,-199.7983108,0.00022996,2]
[313151642,1706820641009,-264.59547339,0.00022996,2]
[313151643,1706820641018,-544.2770359,0.00022996,2]
[313151644,1706820641028,-162.54265488,0.00022996,2]
[313151646,1706820641037,-156.36025162,0.00022996,2]
[313151648,1706820641046,-155.27446598,0.00022996,2]
[313151650,1706820641055,-2514.34633528,0.00022996,2]
[313151651,1706820641064,-1812.15097522,0.00022996,2]
[313151653,1706820641074,-155.50156782,0.00022996,2]
[313151655,1706820641083,-3029.53701716,0.00022996,2]
[313151657,1706820641092,-231.93292492,0.00022996,2]
[313151659,1706820641101,-224.16083161,0.00022996,2]
[313151662,1706820641113,-16801.9913254,0.00022996,2]
[313151663,1706820641122,-175.12632911,0.00022996,2]
[313151665,1706820641131,-2560.36887213,0.00022997,2]
[313151667,1706820641140,-161.36460674,0.00022998,2]
[313151670,1706820641152,-182.73554234,0.00022998,2]
[313151672,1706820641161,-420.4353576,0.00022998,2]
[313151674,1706820641173,-492.6875681,0.00022998,2]
[313151676,1706820641188,-623.58389728,0.00022998,2]
[313151678,1706820641199,-568.37173635,0.00022998,2]
[313151680,1706820641210,-898.45686621,0.00022998,2]
[313151682,1706820641219,-137.91113379,0.00022998,2]
[313151684,1706820641239,-804.9338834,0.00022998,2]
[313151685,1706820641247,-1308.55203385,0.00022998,2]
[313151686,1706820641257,-2730.76335421,0.00022998,2]
[313151687,1706820641269,-5560.48852739,0.00022998,2]
[313151688,1706820641280,-2206.78429854,0.00022998,2]
[313151692,1706820643364,-156.56736622,0.00022726,2]
[313151694,1706820643373,-3582.59421061,0.00022998,2]
[313151696,1706820643384,-5326.70595239,0.00022998,2]
[313151697,1706820643587,-14038.6173342,0.00022998,2]
[313151698,1706820643597,-247.85885747,0.00022998,2]
[313151699,1706820643607,-218.22518431,0.00022998,2]
[313151700,1706820643616,-1279.97143251,0.00022998,2]
[313151701,1706820643626,-305.77445266,0.00022998,2]
[313151702,1706820643635,-1071.96370442,0.00022998,2]
[313151703,1706820643645,-1500.0,0.00022998,2]
[313151704,1706820643655,-597.65827952,0.00022999,2]
[313151705,1706820643665,-411.13676656,0.00022999,2]
[313151706,1706820643674,-197.20182527,0.00022999,2]
[313151707,1706820643683,-12405.26589231,0.00022999,2]
[313151708,1706820643692,-500.0,0.00022999,2]
[313151709,1706820643701,-361.1276721,0.00022999,2]
[313151710,1706820643710,-412.33031332,0.00022999,2]
[313151711,1706820643719,-500.0,0.00022999,2]
[313151712,1706820643729,-500.0,0.00022999,2]
[313151713,1706820643738,-413.61146086,0.00022999,2]
[313151714,1706820643747,-202.22614571,0.00022999,2]
[313151716,1706820643756,-281.32512753,0.00022999,2]
[313151718,1706820643765,-500.0,0.00022999,2]
[313151719,1706820643774,-500.0,0.00022999,2]
[313151720,1706820643783,-500.0,0.00022999,2]
[313151721,1706820643793,-500.0,0.00022999,2]
[313151722,1706820643801,-500.0,0.00022999,2]
[313151723,1706820643810,-500.0,0.00022999,2]
[313151724,1706820643819,-500.0,0.00022999,2]
[313151725,1706820643828,-500.0,0.00022999,2]
[313151726,1706820643837,-500.0,0.00022999,2]
[313151727,1706820643846,-500.0,0.00022999,2]
[313151728,1706820643855,-438.10723104,0.00022999,2]
[313151729,1706820643864,-500.0,0.00022999,2]
[313151730,1706820643872,-500.0,0.00022999,2]
[313151731,1706820643882,-500.0,0.00022999,2]
[313151732,1706820643891,-500.0,0.00022999,2]
[313151733,1706820643900,-500.0,0.00022999,2]
[313151734,1706820643909,-500.0,0.00022999,2]
[313151735,1706820643919,-512.25122174,0.00022999,2]
[313151736,1706820643928,-500.0,0.00022999,2]
[313151737,1706820643938,-500.0,0.00022999,2]
[313151738,1706820643947,-500.0,0.00022999,2]
[313151739,1706820643956,-350.0,0.00022999,2]
[313151740,1706820643965,-420.05717637,0.00022999,2]
[313151741,1706820643975,-350.0,0.00022999,2]
[313151742,1706820643985,-150.0,0.00022999,2]
[313151743,1706820643995,-400.19058789,0.00022999,2]
[313151744,1706820644005,-417876.57291698,0.00022999,3]
[313151745,1706820644014,-371029.16798452,0.00023,2]
[313151750,1706820645444,-2150.9,0.000229,2]
[313151794,1706820663708,205.0,0.00021845,2]
[313151795,1706820682019,250.0,0.00022384,2]
[313151796,1706820711775,350.97314023,0.00015,10]
[313151797,1706820851784,600.25,0.00019866,2]
[313151798,1706820852290,600.25,0.0002213,2]
[313151803,1706820894224,219.87,0.00021784,2]
[313151804,1706820912842,2503.37,0.00021784,2]
[313151805,1706820930483,232.85,0.00021918,2]
[313151806,1706820959428,200.0,0.00021776,2]
[313151807,1706820978986,250.0,0.0002177,2]
[313151808,1706821074575,2975.6916,0.00022413,2]
[313151809,1706821093316,500.0,0.00021768,2]
[313151810,1706821097908,243.78,0.00021768,2]
[313151811,1706821101813,164.28,0.00021768,2]
[313151812,1706821103586,3131.09,0.00021768,2]
[313151813,1706821126348,2000.0,0.00021768,2]
[313151814,1706821138091,23870.0,0.0002177,2]
[313151815,1706821175845,164.33,0.00021931,2]
[313151816,1706821176072,164.33,0.00022094,2]
[313151817,1706821176479,164.33,0.00022258,2]
[313151818,1706821176907,164.33,0.00022421,2]
[313151819,1706821222522,1000.0,0.00021749,2]
[313151822,1706821249387,279.69091136,0.00022,2]
[313151823,1706821293719,540.22,0.00019816,2]
[313151824,1706821294246,540.22,0.0002208,2]
[313151825,1706821398619,781.06,0.00022399,2]
[313151826,1706821444483,206.0,0.00022314,2]
[313151827,1706821476943,2086.14,0.00021757,2]
[313151828,1706821537515,156.56736622,0.00022484,2]
[313151829,1706821538626,243.78,0.00021759,2]
[313151830,1706821634572,164.33,0.00021871,2]
[313151831,1706821634798,164.33,0.00022251,2]
[313151832,1706821677130,200.0,0.00021699,2]
[313151833,1706821732670,486.19,0.00019813,2]
[313151834,1706821733004,486.19,0.00022077,2]
[313151835,1706821813790,623.3393929,0.00021786,2]
[313151836,1706821818979,162.01160859,0.00020425,2]
[313151837,1706821826623,1882.01883733,0.00021786,2]
[313151850,1706821831614,-265.0,0.00022512,2]
[313151851,1706821831623,-298.17399244,0.00022512,2]
[313151852,1706821831634,-156.56736622,0.0002253,2]
[313151853,1706821831643,-455.55864134,0.00022531,2]
[313151854,1706821831655,-265.79135866,0.00022531,2]
[313151855,1706821831664,-99.5607474,0.00022539,2]
[313151856,1706821831675,-252.22102971,0.00022539,2]
[313151857,1706821831687,-362.72822289,0.00022539,2]
[313151858,1706821831696,-316.72254706,0.00022548,2]
[313151859,1706821831723,-410.29745294,0.00022548,2]
[313151860,1706821831733,-727.98,0.00022569,2]
[313151861,1706821831742,-156.56736622,0.00022576,2]
[313151862,1706821831752,-150.0,0.00022595,2]
[313151863,1706821831762,-300.0,0.00022595,2]
[313151864,1706821831771,-38.74731955,0.00022596,2]
[313151865,1706821831783,-842.99708045,0.00022596,2]
[313151866,1706821831794,-1539.50291955,0.00022596,2]
[313151867,1706821831806,-29339.94298045,0.00022596,2]
[313151868,1706821831816,-3422.75701955,0.00022596,2]
[313151869,1706821831831,-2958.08076918,0.00022596,2]
[313151870,1706821831844,-737.61731127,0.00022596,2]
[313151871,1706821831853,-309.34522021,0.00022596,2]
[313151872,1706821831865,-397.098922,0.00022596,2]
[313151873,1706821831878,-1198.89,0.00022596,2]
[313151874,1706821831890,-215.56665779,0.00022596,2]
[313151875,1706821831899,-578.37334221,0.00022596,2]
[313151878,1706821831915,-1368.24665779,0.00022596,2]
[313151880,1706821831925,-499.99,0.00022596,2]
[313151882,1706821831934,-587.87,0.00022596,2]
[313151884,1706821831944,-184.35292533,0.00022596,2]
[313151886,1706821831953,-156.56736622,0.00022623,2]
[313151889,1706821831963,-164.33,0.0002263,2]
[313151891,1706821831972,-184.35292529,0.00022639,2]
[313151894,1706821831981,-156.56736622,0.00022669,2]
[313151895,1706821831991,-184.35292529,0.00022683,2]
[313151897,1706821832001,-405.72658462,0.00022695,2]
[313151899,1706821832011,-1000.0,0.00022696,2]
[313151901,1706821832021,-9755.426,0.00022696,2]
[313151903,1706821832031,-320.8054,0.00022696,2]
[313151905,1706821832040,-259.2562,0.00022696,2]
[313151906,1706821832050,-26981.28705421,0.00022696,2]
[313151907,1706821832062,-36818.49756292,0.00022696,2]
[313151912,1706821839139,-5284.79362264,0.00022696,2]
[313151913,1706821839151,-879.47774667,0.00022696,2]
[313151914,1706821839163,-4187.71856199,0.00022696,2]
[313151915,1706821839174,-262426.65345157,0.00022696,2]
[313151916,1706821839183,-251.8768,0.00022696,2]
[313151917,1706821839191,-1239.1471,0.00022696,2]
[313151918,1706821839200,-156.56736622,0.00022715,2]
[313151919,1706821839209,-184.35292529,0.00022726,2]
[313151920,1706821839218,-150.0,0.00022731,2]
[313151921,1706821839227,-150.0,0.00022735,2]
[313151922,1706821839236,-150.0,0.00022738,2]
[313151923,1706821839245,-150.0,0.00022743,2]
[313151924,1706821839254,-150.0,0.00022744,2]
[313151925,1706821839263,-150.0,0.00022747,2]
[313151926,1706821839273,-150.0,0.00022748,2]
[313151927,1706821839281,-150.0,0.00022751,2]
[313151928,1706821839289,-150.0,0.00022753,2]
[313151929,1706821839298,-150.0,0.00022756,2]
[313151930,1706821839307,-150.0,0.00022757,2]
[313151931,1706821839316,-150.0,0.0002276,2]
[313151932,1706821839325,-150.0,0.0002276,2]
[313151933,1706821839334,-156.56736622,0.00022761,2]
[313151934,1706821839343,-150.0,0.00022763,2]
[313151935,1706821839352,-150.0,0.00022763,2]
[313151936,1706821839361,-150.0,0.00022767,2]
[313151937,1706821839370,-150.0,0.00022769,2]
[313151939,1706821839379,-184.35292529,0.0002277,2]
[313151940,1706821839389,-150.0,0.00022771,2]
[313151942,1706821839398,-215.397955,0.00022771,2]
[313151944,1706821839406,-150.0,0.00022775,2]
[313151946,1706821839416,-150.0,0.0002278,2]
[313151948,1706821839425,-150.0,0.00022781,2]
[313151950,1706821839434,-150.0,0.00022782,2]
[313151952,1706821839443,-150.0,0.00022785,2]
[313151954,1706821839452,-760.33892735,0.00022786,2]
[313151955,1706821839461,-150.0,0.00022788,2]
[313151957,1706821839470,-327.78039702,0.00022794,2]
[313151960,1706821839481,-933.70279809,0.00022794,2]
[313151961,1706821839490,-6147.39256207,0.00022794,2]
[313151962,1706821839498,-449.66200753,0.00022794,2]
[313151963,1706821839506,-150.0,0.00022794,2]
[313151964,1706821839515,-150.0,0.00022794,2]
[313151966,1706821839524,-8407.55514885,0.00022795,2]
[313151968,1706821839533,-244052.4811,0.00022796,2]
[313151970,1706821839542,-1000.0,0.00022796,2]
[313151972,1706821839552,-2245.3057,0.00022796,2]
[313151974,1706821839561,-500.0,0.00022796,2]
[313151976,1706821839571,-150.0,0.00022796,2]
[313151978,1706821839581,-150.0,0.00022797,2]
[313151980,1706821839590,-150.0,0.00022798,2]
[313151981,1706821839600,-150.0,0.00022799,2]
[313151983,1706821839609,-150.0,0.00022802,2]
[313151985,1706821839618,-150.0,0.00022806,2]
[313151987,1706821839627,-156.56736622,0.00022808,2]
[313151989,1706821839638,-150.0,0.0002281,2]
[313151991,1706821839647,-184.35292529,0.00022813,2]
[313151993,1706821839656,-150.0,0.00022819,2]
[313151995,1706821839664,-150.0,0.00022821,2]
[313151997,1706821839673,-150.0,0.00022826,2]
[313151999,1706821839682,-150.0,0.00022828,2]
[313152001,1706821839691,-150.0,0.00022829,2]
[313152003,1706821839701,-200.0,0.00022829,2]
[313152005,1706821839711,-179.0,0.00022829,2]
[313152007,1706821839720,-150.0,0.00022839,2]
[313152008,1706821839730,-150.0,0.00022843,2]
[313152009,1706821839740,-150.0,0.00022844,2]
[313152011,1706821839749,-150.0,0.00022848,2]
[313152012,1706821839758,-150.0,0.00022848,2]
[313152014,1706821839767,-150.0,0.00022849,2]
[313152015,1706821839776,-150.0,0.00022851,2]
[313152017,1706821839786,-150.0,0.00022853,2]
[313152019,1706821839795,-150.0,0.00022853,2]
[313152020,1706821839804,-156.56736622,0.00022854,2]
[313152021,1706821839814,-184.35292529,0.00022857,2]
[313152022,1706821839822,-150.0,0.00022857,2]
[313152023,1706821839831,-150.0,0.0002286,2]
[313152024,1706821839840,-150.0,0.00022861,2]
[313152025,1706821839849,-150.0,0.0002287,2]
[313152026,1706821839859,-150.0,0.00022871,2]
[313152027,1706821839867,-150.0,0.00022873,2]
[313152028,1706821839877,-219.87,0.00022873,2]
[313152029,1706821839887,-150.0,0.00022877,2]
[313152030,1706821839896,-150.0,0.00022877,2]
[313152031,1706821839905,-150.0,0.00022877,2]
[313152032,1706821839914,-150.0,0.00022879,2]
[313152033,1706821839923,-150.0,0.0002288,2]
[313152034,1706821839932,-150.0,0.00022881,2]
[313152035,1706821839941,-150.0,0.00022881,2]
[313152036,1706821839950,-150.0,0.00022884,2]
[313152037,1706821839959,-150.0,0.00022885,2]
[313152038,1706821839969,-150.0,0.0002289,2]
[313152039,1706821839978,-150.0,0.00022894,2]
[313152040,1706821839987,-150.0,0.00022897,2]
[313152041,1706821839998,-504.45439657,0.00022899,2]
[313152042,1706821840007,-283.46410528,0.00022899,2]
[313152044,1706821840016,-283.46410527,0.000229,2]
[313152045,1706821840025,-160281.08376814,0.000229,2]
[313152046,1706821840034,-33213.594011,0.000229,2]
[313152047,1706821840044,-5000.0,0.000229,2]
[313152049,1706821840054,-156.56736622,0.000229,2]
[313152051,1706821840063,-170.64346148,0.000229,2]
[313152053,1706821840072,-2525.13723262,0.000229,2]
[313152055,1706821840079,-283.46410527,0.000229,2]
[313152056,1706821840088,-184.35292529,0.000229,2]
[313152057,1706821840096,-1364.02069686,0.000229,2]
[313152058,1706821840105,-150.0,0.00022901,2]
[313152059,1706821840114,-150.0,0.00022903,2]
[313152060,1706821840123,-150.0,0.00022904,2]
[313152061,1706821840134,-150.0,0.00022904,2]
[313152062,1706821840142,-150.0,0.00022906,2]
[313152063,1706821840151,-150.0,0.00022907,2]
[313152064,1706821840160,-262.30444294,0.00022909,2]
[313152065,1706821840169,-150.0,0.00022909,2]
[313152066,1706821840179,-150.0,0.00022911,2]
[313152067,1706821840188,-150.0,0.00022912,2]
[313152068,1706821840198,-150.0,0.00022918,2]
[313152069,1706821840210,-150.0,0.00022919,2]
[313152070,1706821840220,-150.0,0.00022921,2]
[313152071,1706821840231,-150.0,0.0002293,2]
[313152072,1706821840240,-150.0,0.00022933,2]
[313152073,1706821840249,-150.0,0.00022934,2]
[313152074,1706821840258,-150.0,0.00022937,2]
[313152075,1706821840266,-150.0,0.0002294,2]
[313152076,1706821840276,-150.0,0.00022942,2]
[313152077,1706821840284,-150.0,0.00022944,2]
[313152078,1706821840293,-150.0,0.00022946,2]
[313152079,1706821840302,-150.0,0.0002295,2]
[313152080,1706821840311,-150.0,0.00022966,2]
[313152081,1706821840320,-150.0,0.00022967,2]
[313152082,1706821840329,-150.0,0.00022969,2]
[313152083,1706821840338,-150.0,0.00022979,2]
[313152084,1706821840347,-150.0,0.0002298,2]
[313152085,1706821840356,-150.0,0.00022982,2]
[313152086,1706821840365,-150.0,0.00022982,2]
[313152087,1706821840374,-150.0,0.00022985,2]
[313152088,1706821840384,-150.0,0.00022987,2]
[313152089,1706821840393,-150.0,0.0002299,2]
[313152090,1706821840402,-760.33892735,0.0002299,2]
[313152091,1706821840411,-760.33892735,0.0002299,2]
[313152092,1706821840420,-150.0,0.00022991,2]
[313152093,1706821840429,-150.0,0.00022992,2]
[313152094,1706821840438,-150.0,0.00022993,2]
[313152095,1706821840447,-150.0,0.00022994,2]
[313152096,1706821840456,-432398.75620046,0.00022998,3]
[313152097,1706821840466,-150.01,0.00022999,2]
[313152098,1706821840474,-3306.75797983,0.00022999,2]
[313152099,1706821840483,-357.11876471,0.00022999,10]
[313152100,1706821840493,-500.0,0.00022999,2]
[313152101,1706821840502,-419.3896757,0.00022999,2]
[313152102,1706821840511,-500.0,0.00022999,2]
[313152103,1706821840520,-500.0,0.00022999,2]
[313152104,1706821840529,-500.0,0.00022999,2]
[313152105,1706821840537,-500.0,0.00022999,2]
[313152106,1706821840547,-500.0,0.00022999,2]
[313152107,1706821840557,-363.28312084,0.00022999,2]
[313152108,1706821840569,-500.0,0.00022999,2]
[313152109,1706821840578,-500.0,0.00022999,2]
[313152110,1706821840589,-500.0,0.00022999,2]
[313152111,1706821840599,-500.0,0.00022999,2]
[313152112,1706821840608,-500.0,0.00022999,2]
[313152113,1706821840618,-391.25037465,0.00022999,2]
[313152114,1706821840627,-585.80315843,0.00022999,2]
[313152115,1706821840639,-500.0,0.00022999,2]
[313152116,1706821840649,-500.0,0.00022999,2]
[313152117,1706821840658,-500.0,0.00022999,2]
[313152118,1706821840668,-500.0,0.00022999,2]
[313152119,1706821840678,-500.0,0.00022999,2]
[313152120,1706821840688,-500.0,0.00022999,2]